[Event "Titled Tuesday Blitz April 25 Late 2023"]
[White "Janaszak, Dawid"]
[Black "Bartel, Mateusz"]
[WhiteFideId "1119206"]
[BlackFideId "1112635"]
[WhiteElo "2220"]
[BlackElo "2521"]
[Result "1-0"]
[Round "04"]
[TimeControl "180+2"]
[Date "2023.04.25"]
[WhiteClock "0:00:07"]
[BlackClock "0:00:05"]

1. e4 {[%clk 0:03:00]}  c5 {[%clk 0:02:55]} 2. Nc3 {[%clk 0:03:00]}  Nc6 {[%clk 0:02:51]} 3. Bb5 {[%clk 0:02:59]}  e6 {[%clk 0:02:38]} 4. Bxc6 {[%clk 0:02:55]}  bxc6 {[%clk 0:02:38]} 5. f4 {[%clk 0:02:48]}  d5 {[%clk 0:02:34]} 6. d3 {[%clk 0:02:46]}  Nf6 {[%clk 0:02:24]} 7. e5 {[%clk 0:02:38]}  Nd7 {[%clk 0:02:22]} 8. Nf3 {[%clk 0:02:38]}  Ba6 {[%clk 0:02:08]} 9. O-O {[%clk 0:02:35]}  Be7 {[%clk 0:02:06]} 10. Qe1 {[%clk 0:02:31]}  g6 {[%clk 0:02:01]} 11. b3 {[%clk 0:02:00]}  Rb8 {[%clk 0:01:40]} 12. Kh1 {[%clk 0:01:43]}  O-O {[%clk 0:01:21]} 13. f5 {[%clk 0:01:38]}  exf5 {[%clk 0:01:16]} 14. e6 {[%clk 0:01:38]}  Nf6 {[%clk 0:01:15]} 15. Ng5 {[%clk 0:01:36]}  Bc8 {[%clk 0:01:06]} 16. Bf4 {[%clk 0:01:29]}  Rb4 {[%clk 0:01:05]} 17. exf7+ {[%clk 0:01:28]}  Rxf7 {[%clk 0:01:05]} 18. Nxf7 {[%clk 0:01:28]}  Kxf7 {[%clk 0:01:06]} 19. a3 {[%clk 0:01:24]}  Rb7 {[%clk 0:00:56]} 20. Qd2 {[%clk 0:01:17]}  Bf8 {[%clk 0:00:48]} 21. Rae1 {[%clk 0:01:17]}  Re7 {[%clk 0:00:49]} 22. Bg5 {[%clk 0:01:13]}  Rxe1 {[%clk 0:00:48]} 23. Rxe1 {[%clk 0:01:12]}  Qd6 {[%clk 0:00:46]} 24. h3 {[%clk 0:01:03]}  Nh5 {[%clk 0:00:45]} 25. Ne2 {[%clk 0:00:56]}  Bg7 {[%clk 0:00:41]} 26. Nf4 {[%clk 0:00:49]}  Nxf4 {[%clk 0:00:34]} 27. Bxf4 {[%clk 0:00:46]}  Qd8 {[%clk 0:00:24]} 28. Be5 {[%clk 0:00:46]}  Bf8 {[%clk 0:00:23]} 29. Qe3 {[%clk 0:00:41]}  d4 {[%clk 0:00:20]} 30. Qg3 {[%clk 0:00:38]}  Be6 {[%clk 0:00:19]} 31. a4 {[%clk 0:00:37]}  Bd5 {[%clk 0:00:19]} 32. Re2 {[%clk 0:00:36]}  Be7 {[%clk 0:00:18]} 33. Bc7 {[%clk 0:00:33]}  Qd7 {[%clk 0:00:18]} 34. Qf4 {[%clk 0:00:30]}  g5 {[%clk 0:00:17]} 35. Rxe7+ {[%clk 0:00:24]}  Qxe7 {[%clk 0:00:11]} 36. Qxf5+ {[%clk 0:00:24]}  Ke8 {[%clk 0:00:12]} 37. Qc8+ {[%clk 0:00:22]}  Kf7 {[%clk 0:00:12]} 38. Qf5+ {[%clk 0:00:20]}  Qf6 {[%clk 0:00:09]} 39. Qxf6+ {[%clk 0:00:19]}  Kxf6 {[%clk 0:00:10]} 40. Bd6 {[%clk 0:00:17]}  a6 {[%clk 0:00:10]} 41. Bxc5 {[%clk 0:00:18]}  Ke5 {[%clk 0:00:10]} 42. Kg1 {[%clk 0:00:16]}  h5 {[%clk 0:00:10]} 43. Be7 {[%clk 0:00:16]}  g4 {[%clk 0:00:10]} 44. hxg4 {[%clk 0:00:16]}  hxg4 {[%clk 0:00:11]} 45. Kf2 {[%clk 0:00:17]}  Be6 {[%clk 0:00:11]} 46. Bf8 {[%clk 0:00:17]}  Kd5 {[%clk 0:00:09]} 47. Kg3 {[%clk 0:00:17]}  Bc8 {[%clk 0:00:08]} 48. Kf4 {[%clk 0:00:17]}  Bd7 {[%clk 0:00:09]} 49. Bg7 {[%clk 0:00:16]}  Bc8 {[%clk 0:00:08]} 50. g3 {[%clk 0:00:16]}  Bd7 {[%clk 0:00:08]} 51. Kg5 {[%clk 0:00:16]}  Bc8 {[%clk 0:00:07]} 52. Kf6 {[%clk 0:00:17]}  Bd7 {[%clk 0:00:08]} 53. Ke7 {[%clk 0:00:17]}  Bf5 {[%clk 0:00:08]} 54. Kd8 {[%clk 0:00:15]}  Kc5 {[%clk 0:00:07]} 55. Kc7 {[%clk 0:00:15]}  Be6 {[%clk 0:00:06]} 56. Kb7 {[%clk 0:00:15]}  a5 {[%clk 0:00:06]} 57. Ka6 {[%clk 0:00:14]}  Kb4 {[%clk 0:00:07]} 58. Bxd4 {[%clk 0:00:13]}  c5 {[%clk 0:00:07]} 59. Be5 {[%clk 0:00:12]}  Bc8+ {[%clk 0:00:06]} 60. Kb6 {[%clk 0:00:12]}  Bf5 {[%clk 0:00:06]} 61. Bd6 {[%clk 0:00:12]}  Kc3 {[%clk 0:00:06]} 62. Bxc5 {[%clk 0:00:12]}  Kxc2 {[%clk 0:00:07]} 63. Kxa5 {[%clk 0:00:06]}  Kxb3 {[%clk 0:00:07]} 64. d4 {[%clk 0:00:06]}  Kc4 {[%clk 0:00:05]} 65. Kb6 {[%clk 0:00:06]}  Be4 {[%clk 0:00:05]} 66. a5 {[%clk 0:00:07]}  Kd5 {[%clk 0:00:05]} 67. a6 {[%clk 0:00:07]}  Ke6 {[%clk 0:00:05]} 68. Kc7 {[%clk 0:00:07]} 1-0


[Site "https://www.chess.com"]

[Event "Titled Tuesday Blitz April 25 Late 2023"]
[White "Fiorito, Francisco"]
[Black "Popilski, Gil"]
[WhiteFideId "180165"]
[BlackFideId "2809060"]
[WhiteElo "2341"]
[BlackElo "2537"]
[Result "0-1"]
[Round "04"]
[TimeControl "180+2"]
[Date "2023.04.25"]
[WhiteClock "0:00:03"]
[BlackClock "0:00:25"]

1. e4 {[%clk 0:03:00]}  c5 {[%clk 0:02:55]} 2. d3 {[%clk 0:03:00]}  Nc6 {[%clk 0:02:42]} 3. g3 {[%clk 0:02:58]}  g6 {[%clk 0:02:42]} 4. Bg2 {[%clk 0:02:58]}  Bg7 {[%clk 0:02:36]} 5. f4 {[%clk 0:02:56]}  d6 {[%clk 0:02:36]} 6. Nf3 {[%clk 0:02:55]}  e6 {[%clk 0:02:25]} 7. O-O {[%clk 0:02:53]}  Nge7 {[%clk 0:02:20]} 8. c3 {[%clk 0:02:53]}  O-O {[%clk 0:02:19]} 9. Be3 {[%clk 0:02:53]}  b5 {[%clk 0:02:17]} 10. d4 {[%clk 0:02:50]}  cxd4 {[%clk 0:02:09]} 11. cxd4 {[%clk 0:02:49]}  a5 {[%clk 0:02:03]} 12. Nc3 {[%clk 0:02:43]}  b4 {[%clk 0:01:56]} 13. Na4 {[%clk 0:02:42]}  Ba6 {[%clk 0:01:55]} 14. Re1 {[%clk 0:02:42]}  Rb8 {[%clk 0:01:49]} 15. Bf2 {[%clk 0:02:39]}  Qd7 {[%clk 0:01:45]} 16. Bf1 {[%clk 0:02:25]}  Bxf1 {[%clk 0:01:41]} 17. Rxf1 {[%clk 0:02:26]}  f5 {[%clk 0:01:38]} 18. e5 {[%clk 0:02:24]}  Nd5 {[%clk 0:01:36]} 19. b3 {[%clk 0:02:16]}  Na7 {[%clk 0:01:34]} 20. Qd2 {[%clk 0:02:11]}  Nb5 {[%clk 0:01:33]} 21. Rfe1 {[%clk 0:02:09]}  Nbc3 {[%clk 0:01:31]} 22. Nxc3 {[%clk 0:02:06]}  Nxc3 {[%clk 0:01:32]} 23. Qe3 {[%clk 0:01:52]}  dxe5 {[%clk 0:01:25]} 24. dxe5 {[%clk 0:01:47]}  Rfd8 {[%clk 0:01:24]} 25. Nd4 {[%clk 0:01:39]}  Bf8 {[%clk 0:01:23]} 26. Ne2 {[%clk 0:01:15]}  Ne4 {[%clk 0:01:22]} 27. Rac1 {[%clk 0:01:11]}  Rbc8 {[%clk 0:01:19]} 28. Qf3 {[%clk 0:01:08]}  Nd2 {[%clk 0:01:05]} 29. Qg2 {[%clk 0:01:01]}  Qd3 {[%clk 0:01:03]} 30. Rxc8 {[%clk 0:00:51]}  Rxc8 {[%clk 0:01:02]} 31. Nd4 {[%clk 0:00:49]}  Ne4 {[%clk 0:00:54]} 32. Be3 {[%clk 0:00:06]}  Bc5 {[%clk 0:00:48]} 33. Qc2 {[%clk 0:00:07]}  Qc3 {[%clk 0:00:39]} 34. Qxc3 {[%clk 0:00:06]}  bxc3 {[%clk 0:00:40]} 35. Nc2 {[%clk 0:00:04]}  Rd8 {[%clk 0:00:36]} 36. Bxc5 {[%clk 0:00:03]}  Nxc5 {[%clk 0:00:37]} 37. Re2 {[%clk 0:00:04]}  Rd1+ {[%clk 0:00:32]} 38. Kf2 {[%clk 0:00:03]}  Nd3+ {[%clk 0:00:26]} 39. Ke3 {[%clk 0:00:04]}  Nc1 {[%clk 0:00:25]} 40. Rf2 {[%clk 0:00:03]}  Rd3# {[%clk 0:00:25]} 0-1


[Site "https://www.chess.com"]

[Event "Titled Tuesday Blitz April 25 Late 2023"]
[White "Liu, Eric"]
[Black "Sieciechowicz, Marcin"]
[WhiteFideId "30960240"]
[BlackFideId "1130170"]
[WhiteElo "2094"]
[BlackElo "2302"]
[Result "0-1"]
[Round "04"]
[TimeControl "180+2"]
[Date "2023.04.25"]
[WhiteClock "0:02:00"]
[BlackClock "0:00:50"]

1. b3 {[%clk 0:03:00]}  a5 {[%clk 0:02:59]} 2. Bb2 {[%clk 0:03:01]}  a4 {[%clk 0:02:59]} 3. e3 {[%clk 0:03:01]}  e6 {[%clk 0:02:59]} 4. h4 {[%clk 0:03:01]}  Nf6 {[%clk 0:02:58]} 5. h5 {[%clk 0:03:01]}  a3 {[%clk 0:02:59]} 6. Bc1 {[%clk 0:02:58]}  h6 {[%clk 0:02:57]} 7. c4 {[%clk 0:02:58]}  d5 {[%clk 0:02:57]} 8. Nc3 {[%clk 0:02:59]}  c5 {[%clk 0:02:55]} 9. d4 {[%clk 0:02:59]}  cxd4 {[%clk 0:02:54]} 10. Qxd4 {[%clk 0:02:58]}  Nc6 {[%clk 0:02:53]} 11. Qd1 {[%clk 0:02:56]}  Bb4 {[%clk 0:02:53]} 12. Bd2 {[%clk 0:02:56]}  Qa5 {[%clk 0:02:52]} 13. Qc2 {[%clk 0:02:52]}  d4 {[%clk 0:02:52]} 14. Nb5 {[%clk 0:02:51]}  dxe3 {[%clk 0:02:47]} 15. Nd6+ {[%clk 0:02:43]}  Ke7 {[%clk 0:02:46]} 16. Nxc8+ {[%clk 0:02:43]}  Raxc8 {[%clk 0:02:46]} 17. fxe3 {[%clk 0:02:42]}  Rhd8 {[%clk 0:02:29]} 18. Nf3 {[%clk 0:02:39]}  Bxd2+ {[%clk 0:02:26]} 19. Nxd2 {[%clk 0:02:40]}  Nb4 {[%clk 0:01:58]} 20. Qc1 {[%clk 0:02:37]}  Ne4 {[%clk 0:01:52]} 21. Nxe4 {[%clk 0:02:23]}  Nd3+ {[%clk 0:01:52]} 22. Ke2 {[%clk 0:02:23]}  Nxc1+ {[%clk 0:01:50]} 23. Rxc1 {[%clk 0:02:24]}  Qe5 {[%clk 0:01:41]} 24. Nc3 {[%clk 0:02:21]}  Rd7 {[%clk 0:01:39]} 25. Kf2 {[%clk 0:02:09]}  Qf5+ {[%clk 0:01:21]} 26. Kg3 {[%clk 0:02:08]}  Qg5+ {[%clk 0:01:15]} 27. Kf2 {[%clk 0:02:08]}  Rd2+ {[%clk 0:01:13]} 28. Be2 {[%clk 0:02:08]}  Rcd8 {[%clk 0:01:13]} 29. Rhd1 {[%clk 0:02:08]}  Rxd1 {[%clk 0:01:02]} 30. Bxd1 {[%clk 0:02:05]}  Rd3 {[%clk 0:00:55]} 31. Ne2 {[%clk 0:02:04]}  Qxe3+ {[%clk 0:00:53]} 32. Kf1 {[%clk 0:02:04]}  Rd2 {[%clk 0:00:51]} 33. Ke1 {[%clk 0:02:00]}  Rxe2+ {[%clk 0:00:49]} 34. Bxe2 {[%clk 0:02:00]}  Qxc1+ {[%clk 0:00:50]} 0-1


[Site "https://www.chess.com"]

[Event "Titled Tuesday Blitz April 25 Late 2023"]
[White "Bryakin, Mikhail"]
[Black "Bilan, Danila"]
[WhiteFideId "4165314"]
[BlackFideId "24161918"]
[WhiteElo "2447"]
[BlackElo "2182"]
[Result "1-0"]
[Round "04"]
[TimeControl "180+2"]
[Date "2023.04.25"]
[WhiteClock "0:01:26"]
[BlackClock "0:00:04"]

1. e4 {[%clk 0:02:58]}  c6 {[%clk 0:03:00]} 2. c4 {[%clk 0:02:57]}  d5 {[%clk 0:03:01]} 3. e5 {[%clk 0:02:57]}  Bf5 {[%clk 0:02:57]} 4. Nf3 {[%clk 0:02:53]}  e6 {[%clk 0:02:56]} 5. cxd5 {[%clk 0:02:53]}  cxd5 {[%clk 0:02:43]} 6. Nd4 {[%clk 0:02:50]}  Bg6 {[%clk 0:02:39]} 7. Bb5+ {[%clk 0:02:51]}  Nd7 {[%clk 0:02:39]} 8. f4 {[%clk 0:02:44]}  Be4 {[%clk 0:02:34]} 9. Qe2 {[%clk 0:02:40]}  Bc5 {[%clk 0:02:25]} 10. Nb3 {[%clk 0:02:31]}  Bb6 {[%clk 0:02:15]} 11. Nc3 {[%clk 0:02:31]}  Bg6 {[%clk 0:02:04]} 12. d4 {[%clk 0:02:23]}  a6 {[%clk 0:01:49]} 13. Bd3 {[%clk 0:02:10]}  Ne7 {[%clk 0:01:45]} 14. Be3 {[%clk 0:02:10]}  Bxd3 {[%clk 0:01:34]} 15. Qxd3 {[%clk 0:02:11]}  Rc8 {[%clk 0:01:23]} 16. O-O {[%clk 0:02:09]}  O-O {[%clk 0:01:16]} 17. Na4 {[%clk 0:02:09]}  Rc4 {[%clk 0:00:53]} 18. Nxb6 {[%clk 0:02:05]}  Qxb6 {[%clk 0:00:53]} 19. g4 {[%clk 0:02:04]}  Rfc8 {[%clk 0:00:48]} 20. f5 {[%clk 0:02:04]}  Nxe5 {[%clk 0:00:31]} 21. dxe5 {[%clk 0:01:55]}  Rxg4+ {[%clk 0:00:31]} 22. Kh1 {[%clk 0:01:56]}  d4 {[%clk 0:00:31]} 23. Bxd4 {[%clk 0:01:49]}  Qc6+ {[%clk 0:00:25]} 24. Qf3 {[%clk 0:01:49]}  Nxf5 {[%clk 0:00:21]} 25. Qxc6 {[%clk 0:01:46]}  Rxc6 {[%clk 0:00:22]} 26. Bc3 {[%clk 0:01:47]}  h5 {[%clk 0:00:18]} 27. Rg1 {[%clk 0:01:44]}  Rh4 {[%clk 0:00:13]} 28. Rad1 {[%clk 0:01:41]}  Ne3 {[%clk 0:00:09]} 29. Rd8+ {[%clk 0:01:40]}  Kh7 {[%clk 0:00:09]} 30. Nd4 {[%clk 0:01:26]}  Rc5 {[%clk 0:00:04]} 31. Nf3 {[%clk 0:01:26]}  Rh3 {[%clk 0:00:04]} 32. Ng5+ {[%clk 0:01:26]}  Kg6 {[%clk 0:00:04]} 33. Nxh3+ {[%clk 0:01:26]} 1-0


[Site "https://www.chess.com"]

[Event "Titled Tuesday Blitz April 25 Late 2023"]
[White "Papasimakopoulos, Alexandros"]
[Black "Roebers, Eline"]
[WhiteFideId "4244125"]
[BlackFideId "1058401"]
[WhiteElo "2359"]
[BlackElo "2356"]
[Result "1-0"]
[Round "04"]
[TimeControl "180+2"]
[Date "2023.04.25"]
[WhiteClock "0:00:17"]
[BlackClock "0:00:08"]

1. d4 {[%clk 0:03:00]}  f5 {[%clk 0:02:59]} 2. Nf3 {[%clk 0:02:46]}  Nf6 {[%clk 0:02:58]} 3. e3 {[%clk 0:02:45]}  g6 {[%clk 0:02:58]} 4. Be2 {[%clk 0:02:45]}  Bg7 {[%clk 0:02:58]} 5. c4 {[%clk 0:02:45]}  O-O {[%clk 0:02:59]} 6. b4 {[%clk 0:02:45]}  c6 {[%clk 0:02:57]} 7. O-O {[%clk 0:02:43]}  d5 {[%clk 0:02:56]} 8. b5 {[%clk 0:02:43]}  h6 {[%clk 0:02:54]} 9. a4 {[%clk 0:02:43]}  Be6 {[%clk 0:02:52]} 10. a5 {[%clk 0:02:42]}  a6 {[%clk 0:02:40]} 11. bxa6 {[%clk 0:02:38]}  Nxa6 {[%clk 0:02:38]} 12. Ne5 {[%clk 0:02:38]}  Kh7 {[%clk 0:02:33]} 13. Qb3 {[%clk 0:02:29]}  Rb8 {[%clk 0:02:32]} 14. Nc3 {[%clk 0:02:15]}  Ne4 {[%clk 0:02:28]} 15. cxd5 {[%clk 0:02:11]}  Nxc3 {[%clk 0:02:23]} 16. Qxc3 {[%clk 0:02:11]}  Bxd5 {[%clk 0:02:23]} 17. Ba3 {[%clk 0:02:05]}  f4 {[%clk 0:02:17]} 18. Rab1 {[%clk 0:01:36]}  Qc8 {[%clk 0:02:01]} 19. Bxe7 {[%clk 0:01:26]}  Bxe5 {[%clk 0:01:57]} 20. Bxf8 {[%clk 0:01:09]}  f3 {[%clk 0:00:54]} 21. Bxf3 {[%clk 0:01:06]}  Bxf3 {[%clk 0:00:51]} 22. gxf3 {[%clk 0:01:07]}  Qxf8 {[%clk 0:00:48]} 23. dxe5 {[%clk 0:01:03]}  Qxf3 {[%clk 0:00:48]} 24. Qd4 {[%clk 0:01:02]}  Nc5 {[%clk 0:00:43]} 25. Qf4 {[%clk 0:00:58]}  Qh5 {[%clk 0:00:40]} 26. e6 {[%clk 0:00:49]}  Rf8 {[%clk 0:00:23]} 27. Qc7+ {[%clk 0:00:45]}  Kg8 {[%clk 0:00:21]} 28. e7 {[%clk 0:00:43]}  Re8 {[%clk 0:00:21]} 29. Rfd1 {[%clk 0:00:37]}  Ne4 {[%clk 0:00:14]} 30. Rd8 {[%clk 0:00:30]}  Qg4+ {[%clk 0:00:14]} 31. Kf1 {[%clk 0:00:26]}  Qh3+ {[%clk 0:00:13]} 32. Ke1 {[%clk 0:00:25]}  Nf6 {[%clk 0:00:09]} 33. Rxe8+ {[%clk 0:00:20]}  Nxe8 {[%clk 0:00:10]} 34. Qg3 {[%clk 0:00:17]}  Qf5 {[%clk 0:00:10]} 35. Rxb7 {[%clk 0:00:16]}  Qxa5+ {[%clk 0:00:09]} 36. Kf1 {[%clk 0:00:14]}  Qa6+ {[%clk 0:00:08]} 37. Kg1 {[%clk 0:00:15]}  Qxb7 {[%clk 0:00:08]} 38. Qxg6+ {[%clk 0:00:16]}  Kh8 {[%clk 0:00:07]} 39. Qxe8+ {[%clk 0:00:16]}  Kh7 {[%clk 0:00:08]} 40. Qf7+ {[%clk 0:00:16]}  Kh8 {[%clk 0:00:08]} 41. e8=Q# {[%clk 0:00:17]} 1-0


[Site "https://www.chess.com"]

[Event "Titled Tuesday Blitz April 25 Late 2023"]
[White "Ronka, Erik"]
[Black "Schmakel, Sam"]
[WhiteFideId "505080"]
[BlackFideId "2039311"]
[WhiteElo "2264"]
[BlackElo "2356"]
[Result "0-1"]
[Round "04"]
[TimeControl "180+2"]
[Date "2023.04.25"]
[WhiteClock "0:00:14"]
[BlackClock "0:00:14"]

1. e4 {[%clk 0:03:00]}  Nc6 {[%clk 0:03:00]} 2. Nf3 {[%clk 0:03:01]}  d6 {[%clk 0:03:00]} 3. d4 {[%clk 0:03:00]}  Nf6 {[%clk 0:03:00]} 4. Nc3 {[%clk 0:02:59]}  g6 {[%clk 0:03:01]} 5. Be3 {[%clk 0:02:45]}  Bg7 {[%clk 0:03:01]} 6. Qd2 {[%clk 0:02:42]}  Ng4 {[%clk 0:03:01]} 7. Bg5 {[%clk 0:02:38]}  h6 {[%clk 0:03:02]} 8. Bh4 {[%clk 0:02:38]}  a6 {[%clk 0:03:02]} 9. h3 {[%clk 0:02:34]}  Nf6 {[%clk 0:03:02]} 10. O-O-O {[%clk 0:02:30]}  b5 {[%clk 0:02:34]} 11. e5 {[%clk 0:02:25]}  dxe5 {[%clk 0:02:20]} 12. dxe5 {[%clk 0:02:23]}  Qxd2+ {[%clk 0:02:20]} 13. Rxd2 {[%clk 0:02:24]}  Nd7 {[%clk 0:02:20]} 14. Nd5 {[%clk 0:02:21]}  Ra7 {[%clk 0:02:15]} 15. e6 {[%clk 0:01:52]}  fxe6 {[%clk 0:02:07]} 16. Nf4 {[%clk 0:01:36]}  Kf7 {[%clk 0:01:52]} 17. Bg3 {[%clk 0:01:23]}  e5 {[%clk 0:01:44]} 18. Nd5 {[%clk 0:01:15]}  Nc5 {[%clk 0:01:25]} 19. Nc3 {[%clk 0:00:32]}  e4 {[%clk 0:00:59]} 20. Ne1 {[%clk 0:00:29]}  e5 {[%clk 0:00:55]} 21. a4 {[%clk 0:00:20]}  Nd4 {[%clk 0:00:41]} 22. a5 {[%clk 0:00:08]}  Rd8 {[%clk 0:00:30]} 23. Rd1 {[%clk 0:00:08]}  b4 {[%clk 0:00:25]} 24. Ne2 {[%clk 0:00:07]}  Be6 {[%clk 0:00:15]} 25. Nxd4 {[%clk 0:00:02]}  exd4 {[%clk 0:00:15]} 26. Be2 {[%clk 0:00:03]}  c6 {[%clk 0:00:11]} 27. f3 {[%clk 0:00:03]}  d3 {[%clk 0:00:04]} 28. fxe4 {[%clk 0:00:03]}  dxe2 {[%clk 0:00:04]} 29. Rxd8 {[%clk 0:00:04]}  Bf6 {[%clk 0:00:03]} 30. Rd2 {[%clk 0:00:03]}  Bg5 {[%clk 0:00:04]} 31. Nf3 {[%clk 0:00:03]}  Bxd2+ {[%clk 0:00:04]} 32. Kxd2 {[%clk 0:00:04]}  Nxe4+ {[%clk 0:00:04]} 33. Kxe2 {[%clk 0:00:04]}  Nxg3+ {[%clk 0:00:05]} 34. Kf2 {[%clk 0:00:04]}  Nxh1+ {[%clk 0:00:06]} 35. Kg1 {[%clk 0:00:05]}  Ng3 {[%clk 0:00:06]} 36. Ne5+ {[%clk 0:00:05]}  Kg7 {[%clk 0:00:07]} 37. Nxc6 {[%clk 0:00:05]}  Rc7 {[%clk 0:00:08]} 38. Nxb4 {[%clk 0:00:06]}  Ne2+ {[%clk 0:00:07]} 39. Kf2 {[%clk 0:00:05]}  Nd4 {[%clk 0:00:08]} 40. c3 {[%clk 0:00:06]}  Nc6 {[%clk 0:00:08]} 41. Nxa6 {[%clk 0:00:06]}  Ra7 {[%clk 0:00:08]} 42. Nc5 {[%clk 0:00:06]}  Bd5 {[%clk 0:00:08]} 43. b4 {[%clk 0:00:06]}  Nxa5 {[%clk 0:00:09]} 44. Nd3 {[%clk 0:00:05]}  Nc4 {[%clk 0:00:08]} 45. Nf4 {[%clk 0:00:05]}  Bf7 {[%clk 0:00:09]} 46. Kg3 {[%clk 0:00:05]}  g5 {[%clk 0:00:09]} 47. Ne2 {[%clk 0:00:05]}  Ra3 {[%clk 0:00:09]} 48. h4 {[%clk 0:00:05]}  Bh5 {[%clk 0:00:09]} 49. Nd4 {[%clk 0:00:03]}  Rxc3+ {[%clk 0:00:09]} 50. Kh2 {[%clk 0:00:04]}  gxh4 {[%clk 0:00:08]} 51. Nf5+ {[%clk 0:00:04]}  Kh7 {[%clk 0:00:08]} 52. Nxh4 {[%clk 0:00:03]}  Rb3 {[%clk 0:00:08]} 53. b5 {[%clk 0:00:03]}  Rxb5 {[%clk 0:00:09]} 54. Kg3 {[%clk 0:00:03]}  Nd6 {[%clk 0:00:08]} 55. Nf5 {[%clk 0:00:03]}  Nxf5+ {[%clk 0:00:09]} 56. Kf4 {[%clk 0:00:04]}  Bg6 {[%clk 0:00:09]} 57. g4 {[%clk 0:00:05]}  Rb4+ {[%clk 0:00:10]} 58. Kf3 {[%clk 0:00:04]}  Nd4+ {[%clk 0:00:10]} 59. Kg2 {[%clk 0:00:05]}  Kg7 {[%clk 0:00:10]} 60. g5 {[%clk 0:00:06]}  hxg5 {[%clk 0:00:10]} 61. Kg3 {[%clk 0:00:07]}  Ne6 {[%clk 0:00:10]} 62. Kh3 {[%clk 0:00:07]}  Kf6 {[%clk 0:00:11]} 63. Kh2 {[%clk 0:00:08]}  Kf5 {[%clk 0:00:12]} 64. Kg3 {[%clk 0:00:09]}  Rb3+ {[%clk 0:00:12]} 65. Kf2 {[%clk 0:00:10]}  Kf4 {[%clk 0:00:13]} 66. Ke2 {[%clk 0:00:10]}  g4 {[%clk 0:00:14]} 67. Kd2 {[%clk 0:00:11]}  g3 {[%clk 0:00:15]} 68. Kc1 {[%clk 0:00:12]}  g2 {[%clk 0:00:15]} 69. Kd2 {[%clk 0:00:13]}  g1=Q {[%clk 0:00:15]} 70. Ke2 {[%clk 0:00:13]}  Qe3+ {[%clk 0:00:15]} 71. Kd1 {[%clk 0:00:14]}  Rb1# {[%clk 0:00:14]} 0-1


[Site "https://www.chess.com"]

[Event "Titled Tuesday Blitz April 25 Late 2023"]
[White "Gritsenko, Nikolai"]
[Black "Erdogan, Anil Berk"]
[WhiteFideId "14112493"]
[BlackFideId "6348173"]
[WhiteElo "2389"]
[BlackElo "2007"]
[Result "1-0"]
[Round "04"]
[TimeControl "180+2"]
[Date "2023.04.25"]
[WhiteClock "0:00:52"]
[BlackClock "0:00:01"]

1. d4 {[%clk 0:03:00]}  Nf6 {[%clk 0:02:54]} 2. Bg5 {[%clk 0:03:00]}  e6 {[%clk 0:02:53]} 3. Nd2 {[%clk 0:02:59]}  d5 {[%clk 0:02:54]} 4. e3 {[%clk 0:02:59]}  Be7 {[%clk 0:02:54]} 5. Bd3 {[%clk 0:02:58]}  h6 {[%clk 0:02:54]} 6. Bh4 {[%clk 0:02:58]}  Nbd7 {[%clk 0:02:53]} 7. f4 {[%clk 0:02:57]}  c5 {[%clk 0:02:43]} 8. c3 {[%clk 0:02:57]}  b6 {[%clk 0:02:43]} 9. Qe2 {[%clk 0:02:56]}  Bb7 {[%clk 0:02:41]} 10. Bxf6 {[%clk 0:02:47]}  Nxf6 {[%clk 0:02:29]} 11. Ngf3 {[%clk 0:02:43]}  O-O {[%clk 0:02:11]} 12. Ba6 {[%clk 0:02:39]}  Qc8 {[%clk 0:02:06]} 13. Bxb7 {[%clk 0:02:38]}  Qxb7 {[%clk 0:02:07]} 14. O-O {[%clk 0:02:38]}  Ne4 {[%clk 0:01:56]} 15. Nxe4 {[%clk 0:02:35]}  dxe4 {[%clk 0:01:57]} 16. Nd2 {[%clk 0:02:34]}  cxd4 {[%clk 0:01:52]} 17. exd4 {[%clk 0:02:25]}  f5 {[%clk 0:01:52]} 18. Nc4 {[%clk 0:02:24]}  Rac8 {[%clk 0:01:43]} 19. Ne3 {[%clk 0:02:14]}  b5 {[%clk 0:01:29]} 20. a3 {[%clk 0:02:12]}  a5 {[%clk 0:01:29]} 21. g4 {[%clk 0:02:10]}  b4 {[%clk 0:01:16]} 22. axb4 {[%clk 0:02:01]}  axb4 {[%clk 0:01:17]} 23. c4 {[%clk 0:01:55]}  Bf6 {[%clk 0:01:11]} 24. Rad1 {[%clk 0:01:52]}  Rfd8 {[%clk 0:01:03]} 25. d5 {[%clk 0:01:49]}  exd5 {[%clk 0:00:46]} 26. Nxd5 {[%clk 0:01:47]}  fxg4 {[%clk 0:00:26]} 27. Qxe4 {[%clk 0:01:39]}  Qa7+ {[%clk 0:00:19]} 28. Kh1 {[%clk 0:01:35]}  Qf7 {[%clk 0:00:17]} 29. b3 {[%clk 0:01:29]}  Re8 {[%clk 0:00:17]} 30. Qg2 {[%clk 0:01:28]}  h5 {[%clk 0:00:17]} 31. Rde1 {[%clk 0:01:26]}  Qg6 {[%clk 0:00:13]} 32. h3 {[%clk 0:01:17]}  Bc3 {[%clk 0:00:13]} 33. f5 {[%clk 0:01:13]}  Qg5 {[%clk 0:00:10]} 34. Re6 {[%clk 0:01:09]}  Qh4 {[%clk 0:00:08]} 35. Rf4 {[%clk 0:01:02]}  Be5 {[%clk 0:00:07]} 36. Re4 {[%clk 0:00:59]}  gxh3 {[%clk 0:00:01]} 37. Qf3 {[%clk 0:00:52]} 1-0


[Site "https://www.chess.com"]